{"text_format":"1","workbook":"xlsx","n_sheets":6,"sheets":["使い方","使用例","10月セールス活動表","11月セールス活動表","12月セールス活動表","Sheet2"],"not_rendered":{"charts":8,"images":2,"macros":1,"external_links":0,"defined_names":1,"comments":0,"pivot_tables":0},"unopened":[],"bounds":{"document_bytes":16777216,"sheet_cells":100000,"rows_first":2000,"rows_last":500,"rows_between":2000,"halvings":0,"cell_chars":16384,"cell_head_chars":4096},"cells_cut":0,"cells_raw":0,"read":"whole","date_system":"1900"}

{"sheet":"使い方","index":0,"n_rows":1,"n_cols":1,"rows_kept":1,"cut":false,"hidden":false,"merged":[]}
["このテンプレートの使い方"]

{"sheet":"使用例","index":1,"n_rows":108,"n_cols":25,"rows_kept":108,"cut":false,"hidden":false,"merged":[[47,4,47,5],[49,1,49,9],[41,4,41,5],[42,4,42,5],[43,4,43,5],[44,4,44,5],[45,4,45,5],[46,4,46,5],[40,4,40,5],[29,4,29,5],[30,4,30,5],[31,4,31,5],[32,4,32,5],[33,4,33,5],[34,4,34,5],[35,4,35,5],[36,4,36,5],[37,4,37,5],[38,4,38,5],[39,4,39,5],[28,4,28,5],[17,4,17,5],[18,4,18,5],[19,4,19,5],[20,4,20,5],[21,4,21,5],[22,4,22,5],[23,4,23,5],[24,4,24,5],[25,4,25,5],[26,4,26,5],[27,4,27,5],[16,4,16,5],[6,2,6,4],[6,6,6,7],[6,8,6,9],[8,1,8,9],[15,4,15,5]]}
[]
[null,"セールス活動表",null,null,null,null,null,"実施日："]
[]
[]
[]
[null,null,null,null,null,null,null,null,null,null,null,null,null,null,null,null,null,null,null,null,null,null,null,null,"祝日設定"]
[null,"会社名","マイクロマウス",null,null,null,{"$f":"B17","v":"2013-09-01"},null,10000,null,null,null,null,null,null,null,null,null,null,null,null,null,null,null,"2011-01-01"]
[null,null,null,null,null,null,null,null,null,null,null,null,null,null,null,null,null,null,null,null,null,null,null,null,"2011-01-10"]
[null,"数値入力用キーパッド",null,null,null,null,null,null,null,null,null,null,null,null,null,null,null,null,null,null,null,null,null,null,"2011-02-11"]
[null,null,null,null,null,null,null,null,null,null,null,null,null,null,null,null,null,null,null,null,null,null,null,null,"2011-03-21"]
[null,null,null,null,null,null,null,null,null,null,null,null,null,null,null,null,null,null,null,null,null,null,null,null,"2011-04-29"]
[null,null,null,null,null,null,null,null,null,null,null,null,null,null,null,null,null,null,null,null,null,null,null,null,"2011-05-03"]
[null,null,null,null,null,null,null,null,null,null,null,null,null,null,null,null,null,null,null,null,null,null,null,null,"2011-05-04"]
[null,null,null,null,null,null,null,null,null,null,null,null,null,null,null,null,null,null,null,null,null,null,null,null,"2011-05-05"]
[null,null,null,null,null,null,null,null,null,null,null,null,null,null,null,null,null,null,null,null,null,null,null,null,"2011-07-18"]
[null,"日付","日割予算（千円）","実績（千円）","差（千円）",null,"月予算達成率","累計実績（千円）","残（千円）","備考"]
[null,{"$f":"DATE(YEAR(TODAY()),B49,1)","v":"2013-09-01"},200,180,{"$f":"IF(D17=\"\",\"\",D17-C17)","v":-20},{"$f":"IF(E17=\"\",\"\",E17-D17)","v":-200},{"$f":"IF(D17=\"\",\"\",H17/$I$7)","v":1.7999999999999999E-2},{"$f":"IF(D17=\"\",\"\",D17)","v":180},{"$f":"IF(D17=\"\",\"\",IF($I$7-H17<0,\"0\",$I$7-H17))","v":9820},null,null,null,null,null,null,null,null,null,null,null,null,null,null,null,"2011-09-19"]
[null,{"$f":"IF(ISERROR(IF(MONTH(B17+1)=MONTH(B17), B17+1,\"\")),\"\",IF(MONTH(B17+1)=MONTH(B17), B17+1,\"\"))","v":"2013-09-02"},200,200,{"$f":"IF(D18=\"\",\"\",D18-C18)","v":0},-200,{"$f":"IF(D18=\"\",\"\",H18/$I$7)","v":3.7999999999999999E-2},{"$f":"IF(D18=\"\",\"\",D18+H17)","v":380},{"$f":"IF(D18=\"\",\"\",IF($I$7-H18<0,\"0\",$I$7-H18))","v":9620},null,null,null,null,null,null,null,null,null,null,null,null,null,null,null,"2011-09-23"]
[null,"2013-09-03",300,330,30,-300,7.0999999999999994E-2,{"$f":"IF(D19=\"\",\"\",D19+H18)","v":710},9290,null,null,null,null,null,null,null,null,null,null,null,null,null,null,null,"2011-10-10"]
[null,"2013-09-04",400,200,-200,-400,9.0999999999999998E-2,910,9090,null,null,null,null,null,null,null,null,null,null,null,null,null,null,null,"2011-11-03"]
[null,"2013-09-05",200,100,-100,-200,0.10100000000000001,1010,8990,null,null,null,null,null,null,null,null,null,null,null,null,null,null,null,"2011-11-23"]
[null,"2013-09-06",300,100,-200,-300,0.111,1110,8890,null,null,null,null,null,null,null,null,null,null,null,null,null,null,null,"2011-12-23"]
[null,"2013-09-07",200,100,-100,-200,0.121,1210,8790,null,null,null,null,null,null,null,null,null,null,null,null,null,null,null,"2011-12-30"]
[null,"2013-09-08",150,150,0,-150,0.13600000000000001,1360,8640,null,null,null,null,null,null,null,null,null,null,null,null,null,null,null,"2011-12-31"]
[null,"2013-09-09",180,130,-50,-180,0.14899999999999999,1490,8510,null,null,null,null,null,null,null,null,null,null,null,null,null,null,null,"2012-01-01"]
[null,"2013-09-10",300,200,-100,-300,0.16900000000000001,1690,8310,null,null,null,null,null,null,null,null,null,null,null,null,null,null,null,"2012-01-02"]
[null,"2013-09-11",300,210,-90,-300,0.19,1900,8100,null,null,null,null,null,null,null,null,null,null,null,null,null,null,null,"2012-01-09"]
[null,"2013-09-12",100,80,-20,-100,0.19800000000000001,1980,8020,null,null,null,null,null,null,null,null,null,null,null,null,null,null,null,"2012-02-11"]
[null,"2013-09-13",120,80,-40,-120,0.20599999999999999,2060,7940,null,null,null,null,null,null,null,null,null,null,null,null,null,null,null,"2012-03-20"]
[null,"2013-09-14",130,90,-40,-130,0.215,2150,7850,null,null,null,null,null,null,null,null,null,null,null,null,null,null,null,"2012-04-29"]
[null,"2013-09-15",150,100,-50,-150,0.22500000000000001,2250,7750,null,null,null,null,null,null,null,null,null,null,null,null,null,null,null,"2012-04-30"]
[null,"2013-09-16",100,50,-50,-100,0.23,2300,7700,null,null,null,null,null,null,null,null,null,null,null,null,null,null,null,"2012-05-03"]
[null,"2013-09-17",180,130,-50,-180,0.24299999999999999,2430,7570,null,null,null,null,null,null,null,null,null,null,null,null,null,null,null,"2012-05-04"]
[null,"2013-09-18",300,200,-100,-300,0.26300000000000001,2630,7370,null,null,null,null,null,null,null,null,null,null,null,null,null,null,null,"2012-05-05"]
[null,"2013-09-19",200,180,-20,-200,0.28100000000000003,2810,7190,null,null,null,null,null,null,null,null,null,null,null,null,null,null,null,"2012-07-16"]
[null,"2013-09-20",210,170,-40,-210,0.29799999999999999,2980,7020,null,null,null,null,null,null,null,null,null,null,null,null,null,null,null,"2012-09-17"]
[null,"2013-09-21",300,190,-110,-300,0.317,3170,6830,null,null,null,null,null,null,null,null,null,null,null,null,null,null,null,"2012-09-22"]
[null,"2013-09-22",180,100,-80,-180,0.32700000000000001,3270,6730,null,null,null,null,null,null,null,null,null,null,null,null,null,null,null,"2012-10-08"]
[null,"2013-09-23",150,120,-30,-150,0.33900000000000002,3390,6610,null,null,null,null,null,null,null,null,null,null,null,null,null,null,null,"2012-11-03"]
[null,"2013-09-24",130,70,-60,-130,0.34599999999999997,3460,6540,null,null,null,null,null,null,null,null,null,null,null,null,null,null,null,"2012-11-23"]
[null,"2013-09-25",140,90,-50,-140,0.35499999999999998,3550,6450,null,null,null,null,null,null,null,null,null,null,null,null,null,null,null,"2012-12-23"]
[null,"2013-09-26",160,110,-50,-160,0.36599999999999999,3660,6340,null,null,null,null,null,null,null,null,null,null,null,null,null,null,null,"2012-12-24"]
[null,"2013-09-27",180,150,-30,-180,0.38100000000000001,3810,6190,null,null,null,null,null,null,null,null,null,null,null,null,null,null,null,"2013-01-01"]
[null,"2013-09-28",190,110,-80,-190,0.39200000000000002,3920,6080,null,null,null,null,null,null,null,null,null,null,null,null,null,null,null,"2013-01-14"]
[null,"2013-09-29",220,150,-70,-220,0.40699999999999997,4070,5930,null,null,null,null,null,null,null,null,null,null,null,null,null,null,null,"2013-02-11"]
[null,"2013-09-30",210,150,-60,-210,0.42199999999999999,4220,5780,null,null,null,null,null,null,null,null,null,null,null,null,null,null,null,"2013-03-20"]
[null,"",200,140,-60,-200,0.436,4360,5640,null,null,null,null,null,null,null,null,null,null,null,null,null,null,null,"2013-04-29"]
[null,{"$f":"B17","v":"2013-09-01"},{"$f":"SUM(C17:C47)","v":6280},{"$f":"SUM(D17:D47)","v":4360},{"$f":"SUM(E17:E47)","v":-1920},{"$f":"IF(D48=\"\",\"\",G48/$H$3)","v":{"$error":"#DIV/0!"}},{"$f":"IF(D48=0,0,H48/$I$7)","v":0.436},{"$f":"SUM(D17:D47)","v":4360},{"$f":"IF(D48=\"\",\"\",IF($I$7-H48<0,\"0\",$I$7-H48))","v":5640},null,null,null,null,null,null,null,null,null,null,null,null,null,null,null,"2013-05-03"]
[null,9,null,null,null,null,null,null,null,null,null,null,null,null,null,null,null,null,null,null,null,null,null,null,"2013-05-04"]
[null,"売上管理グラフ",null,null,null,null,null,null,null,null,null,null,null,null,null,null,null,null,null,null,null,null,null,null,"2013-05-06"]
[null,null,null,null,null,null,null,null,null,null,null,null,null,null,null,null,null,null,null,null,null,null,null,null,"2013-07-15"]
[null,null,null,null,null,null,null,null,null,null,null,null,null,null,null,null,null,null,null,null,null,null,null,null,"2013-09-16"]
[null,null,null,null,null,null,null,null,null,null,null,null,null,null,null,null,null,null,null,null,null,null,null,null,"2013-09-23"]
[null,null,null,null,null,null,null,null,null,null,null,null,null,null,null,null,null,null,null,null,null,null,null,null,"2013-10-14"]
[null,null,null,null,null,null,null,null,null,null,null,null,null,null,null,null,null,null,null,null,null,null,null,null,"2013-11-03"]
[null,null,null,null,null,null,null,null,null,null,null,null,null,null,null,null,null,null,null,null,null,null,null,null,"2013-11-04"]
[null,null,null,null,null,null,null,null,null,null,null,null,null,null,null,null,null,null,null,null,null,null,null,null,"2013-11-23"]
[null,null,null,null,null,null,null,null,null,null,null,null,null,null,null,null,null,null,null,null,null,null,null,null,"2013-12-23"]
[null,null,null,null,null,null,null,null,null,null,null,null,null,null,null,null,null,null,null,null,null,null,null,null,"2014-01-01"]
[null,null,null,null,null,null,null,null,null,null,null,null,null,null,null,null,null,null,null,null,null,null,null,null,"2014-01-13"]
[null,null,null,null,null,null,null,null,null,null,null,null,null,null,null,null,null,null,null,null,null,null,null,null,"2014-02-11"]
[null,null,null,null,null,null,null,null,null,null,null,null,null,null,null,null,null,null,null,null,null,null,null,null,"2014-03-21"]
[null,null,null,null,null,null,null,null,null,null,null,null,null,null,null,null,null,null,null,null,null,null,null,null,"2014-04-29"]
[null,null,null,null,null,null,null,null,null,null,null,null,null,null,null,null,null,null,null,null,null,null,null,null,"2014-05-03"]
[null,null,null,null,null,null,null,null,null,null,null,null,null,null,null,null,null,null,null,null,null,null,null,null,"2014-05-04"]
[null,null,null,null,null,null,null,null,null,null,null,null,null,null,null,null,null,null,null,null,null,null,null,null,"2014-05-05"]
[null,null,null,null,null,null,null,null,null,null,null,null,null,null,null,null,null,null,null,null,null,null,null,null,"2014-05-06"]
[null,null,null,null,null,null,null,null,null,null,null,null,null,null,null,null,null,null,null,null,null,null,null,null,"2014-07-21"]
[null,null,null,null,null,null,null,null,null,null,null,null,null,null,null,null,null,null,null,null,null,null,null,null,"2014-09-15"]
[null,null,null,null,null,null,null,null,null,null,null,null,null,null,null,null,null,null,null,null,null,null,null,null,"2014-09-23"]
[null,null,null,null,null,null,null,null,null,null,null,null,null,null,null,null,null,null,null,null,null,null,null,null,"2014-10-13"]
[null,null,null,null,null,null,null,null,null,null,null,null,null,null,null,null,null,null,null,null,null,null,null,null,"2014-11-03"]
[null,null,null,null,null,null,null,null,null,null,null,null,null,null,null,null,null,null,null,null,null,null,null,null,"2014-11-23"]
[null,null,null,null,null,null,null,null,null,null,null,null,null,null,null,null,null,null,null,null,null,null,null,null,"2014-11-24"]
[null,null,null,null,null,null,null,null,null,null,null,null,null,null,null,null,null,null,null,null,null,null,null,null,"2014-12-23"]
[null,null,null,null,null,null,null,null,null,null,null,null,null,null,null,null,null,null,null,null,null,null,null,null,"2015-01-01"]
[null,null,null,null,null,null,null,null,null,null,null,null,null,null,null,null,null,null,null,null,null,null,null,null,"2015-01-12"]
[null,null,null,null,null,null,null,null,null,null,null,null,null,null,null,null,null,null,null,null,null,null,null,null,"2015-02-11"]
[null,null,null,null,null,null,null,null,null,null,null,null,null,null,null,null,null,null,null,null,null,null,null,null,"2015-03-21"]
[null,null,null,null,null,null,null,null,null,null,null,null,null,null,null,null,null,null,null,null,null,null,null,null,"2015-04-29"]
[null,null,null,null,null,null,null,null,null,null,null,null,null,null,null,null,null,null,null,null,null,null,null,null,"2015-05-03"]
[null,null,null,null,null,null,null,null,null,null,null,null,null,null,null,null,null,null,null,null,null,null,null,null,"2015-05-04"]
[null,null,null,null,null,null,null,null,null,null,null,null,null,null,null,null,null,null,null,null,null,null,null,null,"2015-05-05"]
[null,null,null,null,null,null,null,null,null,null,null,null,null,null,null,null,null,null,null,null,null,null,null,null,"2015-05-06"]
[null,null,null,null,null,null,null,null,null,null,null,null,null,null,null,null,null,null,null,null,null,null,null,null,"2015-07-20"]
[null,null,null,null,null,null,null,null,null,null,null,null,null,null,null,null,null,null,null,null,null,null,null,null,"2015-09-21"]
[null,null,null,null,null,null,null,null,null,null,null,null,null,null,null,null,null,null,null,null,null,null,null,null,"2015-09-22"]
[null,null,null,null,null,null,null,null,null,null,null,null,null,null,null,null,null,null,null,null,null,null,null,null,"2015-09-23"]
[null,null,null,null,null,null,null,null,null,null,null,null,null,null,null,null,null,null,null,null,null,null,null,null,"2015-10-12"]
[null,null,null,null,null,null,null,null,null,null,null,null,null,null,null,null,null,null,null,null,null,null,null,null,"2015-11-03"]
[null,null,null,null,null,null,null,null,null,null,null,null,null,null,null,null,null,null,null,null,null,null,null,null,"2015-11-23"]
[null,null,null,null,null,null,null,null,null,null,null,null,null,null,null,null,null,null,null,null,null,null,null,null,"2015-12-23"]
[null,null,null,null,null,null,null,null,null,null,null,null,null,null,null,null,null,null,null,null,null,null,null,null,"2016-01-01"]
[null,null,null,null,null,null,null,null,null,null,null,null,null,null,null,null,null,null,null,null,null,null,null,null,"2016-01-11"]
[null,null,null,null,null,null,null,null,null,null,null,null,null,null,null,null,null,null,null,null,null,null,null,null,"2016-02-11"]
[null,null,null,null,null,null,null,null,null,null,null,null,null,null,null,null,null,null,null,null,null,null,null,null,"2016-03-20"]
[null,null,null,null,null,null,null,null,null,null,null,null,null,null,null,null,null,null,null,null,null,null,null,null,"2016-03-21"]
[null,null,null,null,null,null,null,null,null,null,null,null,null,null,null,null,null,null,null,null,null,null,null,null,"2016-04-29"]
[null,null,null,null,null,null,null,null,null,null,null,null,null,null,null,null,null,null,null,null,null,null,null,null,"2016-05-03"]
[null,null,null,null,null,null,null,null,null,null,null,null,null,null,null,null,null,null,null,null,null,null,null,null,"2016-05-04"]
[null,null,null,null,null,null,null,null,null,null,null,null,null,null,null,null,null,null,null,null,null,null,null,null,"2016-05-05"]
[null,null,null,null,null,null,null,null,null,null,null,null,null,null,null,null,null,null,null,null,null,null,null,null,"2016-07-18"]
[null,null,null,null,null,null,null,null,null,null,null,null,null,null,null,null,null,null,null,null,null,null,null,null,"2016-09-19"]
[null,null,null,null,null,null,null,null,null,null,null,null,null,null,null,null,null,null,null,null,null,null,null,null,"2016-09-22"]
[null,null,null,null,null,null,null,null,null,null,null,null,null,null,null,null,null,null,null,null,null,null,null,null,"2016-10-10"]
[null,null,null,null,null,null,null,null,null,null,null,null,null,null,null,null,null,null,null,null,null,null,null,null,"2016-11-03"]
[null,null,null,null,null,null,null,null,null,null,null,null,null,null,null,null,null,null,null,null,null,null,null,null,"2016-11-23"]
[null,null,null,null,null,null,null,null,null,null,null,null,null,null,null,null,null,null,null,null,null,null,null,null,"2016-12-23"]

{"sheet":"10月セールス活動表","index":2,"n_rows":108,"n_cols":25,"rows_kept":108,"cut":false,"hidden":false,"merged":[[8,1,8,9],[6,2,6,4],[6,6,6,7],[6,8,6,9],[26,4,26,5],[15,4,15,5],[16,4,16,5],[17,4,17,5],[18,4,18,5],[19,4,19,5],[20,4,20,5],[21,4,21,5],[22,4,22,5],[23,4,23,5],[24,4,24,5],[25,4,25,5],[38,4,38,5],[27,4,27,5],[28,4,28,5],[29,4,29,5],[30,4,30,5],[31,4,31,5],[32,4,32,5],[33,4,33,5],[34,4,34,5],[35,4,35,5],[36,4,36,5],[37,4,37,5],[45,4,45,5],[46,4,46,5],[47,4,47,5],[49,1,49,9],[39,4,39,5],[40,4,40,5],[41,4,41,5],[42,4,42,5],[43,4,43,5],[44,4,44,5]]}
[]
[null,"セールス活動表",null,null,null,null,null,"実施日："]
[]
[]
[]
[null,null,null,null,null,null,null,null,null,null,null,null,null,null,null,null,null,null,null,null,null,null,null,null,"祝日設定"]
[null,"会社名",null,null,null,null,{"$f":"B17","v":"2013-10-01"},null,null,null,null,null,null,null,null,null,null,null,null,null,null,null,null,null,"2011-01-01"]
[null,null,null,null,null,null,null,null,null,null,null,null,null,null,null,null,null,null,null,null,null,null,null,null,"2011-01-10"]
[null,"数値入力用キーパッド",null,null,null,null,null,null,null,null,null,null,null,null,null,null,null,null,null,null,null,null,null,null,"2011-02-11"]
[null,null,null,null,null,null,null,null,null,null,null,null,null,null,null,null,null,null,null,null,null,null,null,null,"2011-03-21"]
[null,null,null,null,null,null,null,null,null,null,null,null,null,null,null,null,null,null,null,null,null,null,null,null,"2011-04-29"]
[null,null,null,null,null,null,null,null,null,null,null,null,null,null,null,null,null,null,null,null,null,null,null,null,"2011-05-03"]
[null,null,null,null,null,null,null,null,null,null,null,null,null,null,null,null,null,null,null,null,null,null,null,null,"2011-05-04"]
[null,null,null,null,null,null,null,null,null,null,null,null,null,null,null,null,null,null,null,null,null,null,null,null,"2011-05-05"]
[null,null,null,null,null,null,null,null,null,null,null,null,null,null,null,null,null,null,null,null,null,null,null,null,"2011-07-18"]
[null,"日付","日割予算（千円）","実績（千円）","差（千円）",null,"月予算達成率","累計実績（千円）","残（千円）","備考"]
[null,{"$f":"DATE(YEAR(TODAY()),B49,1)","v":"2013-10-01"},null,null,{"$f":"IF(D17=\"\",\"\",D17-C17)","v":""},{"$f":"IF(E17=\"\",\"\",E17-D17)","v":""},{"$f":"IF(D17=\"\",\"\",H17/$I$7)","v":""},{"$f":"IF(D17=\"\",\"\",D17)","v":""},{"$f":"IF(D17=\"\",\"\",IF($I$7-H17<0,\"0\",$I$7-H17))","v":""},null,null,null,null,null,null,null,null,null,null,null,null,null,null,null,"2011-09-19"]
[null,{"$f":"IF(ISERROR(IF(MONTH(B17+1)=MONTH(B17), B17+1,\"\")),\"\",IF(MONTH(B17+1)=MONTH(B17), B17+1,\"\"))","v":"2013-10-02"},null,null,{"$f":"IF(D18=\"\",\"\",D18-C18)","v":""},{"$f":"IF(E18=\"\",\"\",E18-D18)","v":""},{"$f":"IF(D18=\"\",\"\",H18/$I$7)","v":""},{"$f":"IF(D18=\"\",\"\",D18+H17)","v":""},{"$f":"IF(D18=\"\",\"\",IF($I$7-H18<0,\"0\",$I$7-H18))","v":""},null,null,null,null,null,null,null,null,null,null,null,null,null,null,null,"2011-09-23"]
[null,"2013-10-03",null,null,"","","",{"$f":"IF(D19=\"\",\"\",D19+H18)","v":""},"",null,null,null,null,null,null,null,null,null,null,null,null,null,null,null,"2011-10-10"]
[null,"2013-10-04",null,null,"","","","","",null,null,null,null,null,null,null,null,null,null,null,null,null,null,null,"2011-11-03"]
[null,"2013-10-05",null,null,"","","","","",null,null,null,null,null,null,null,null,null,null,null,null,null,null,null,"2011-11-23"]
[null,"2013-10-06",null,null,"","","","","",null,null,null,null,null,null,null,null,null,null,null,null,null,null,null,"2011-12-23"]
[null,"2013-10-07",null,null,"","","","","",null,null,null,null,null,null,null,null,null,null,null,null,null,null,null,"2011-12-30"]
[null,"2013-10-08",null,null,"","","","","",null,null,null,null,null,null,null,null,null,null,null,null,null,null,null,"2011-12-31"]
[null,"2013-10-09",null,null,"","","","","",null,null,null,null,null,null,null,null,null,null,null,null,null,null,null,"2012-01-01"]
[null,"2013-10-10",null,null,"","","","","",null,null,null,null,null,null,null,null,null,null,null,null,null,null,null,"2012-01-02"]
[null,"2013-10-11",null,null,"","","","","",null,null,null,null,null,null,null,null,null,null,null,null,null,null,null,"2012-01-09"]
[null,"2013-10-12",null,null,"","","","","",null,null,null,null,null,null,null,null,null,null,null,null,null,null,null,"2012-02-11"]
[null,"2013-10-13",null,null,"","","","","",null,null,null,null,null,null,null,null,null,null,null,null,null,null,null,"2012-03-20"]
[null,"2013-10-14",null,null,"","","","","",null,null,null,null,null,null,null,null,null,null,null,null,null,null,null,"2012-04-29"]
[null,"2013-10-15",null,null,"","","","","",null,null,null,null,null,null,null,null,null,null,null,null,null,null,null,"2012-04-30"]
[null,"2013-10-16",null,null,"","","","","",null,null,null,null,null,null,null,null,null,null,null,null,null,null,null,"2012-05-03"]
[null,"2013-10-17",null,null,"","","","","",null,null,null,null,null,null,null,null,null,null,null,null,null,null,null,"2012-05-04"]
[null,"2013-10-18",null,null,"","","","","",null,null,null,null,null,null,null,null,null,null,null,null,null,null,null,"2012-05-05"]
[null,"2013-10-19",null,null,"","","","","",null,null,null,null,null,null,null,null,null,null,null,null,null,null,null,"2012-07-16"]
[null,"2013-10-20",null,null,"","","","","",null,null,null,null,null,null,null,null,null,null,null,null,null,null,null,"2012-09-17"]
[null,"2013-10-21",null,null,"","","","","",null,null,null,null,null,null,null,null,null,null,null,null,null,null,null,"2012-09-22"]
[null,"2013-10-22",null,null,"","","","","",null,null,null,null,null,null,null,null,null,null,null,null,null,null,null,"2012-10-08"]
[null,"2013-10-23",null,null,"","","","","",null,null,null,null,null,null,null,null,null,null,null,null,null,null,null,"2012-11-03"]
[null,"2013-10-24",null,null,"","","","","",null,null,null,null,null,null,null,null,null,null,null,null,null,null,null,"2012-11-23"]
[null,"2013-10-25",null,null,"","","","","",null,null,null,null,null,null,null,null,null,null,null,null,null,null,null,"2012-12-23"]
[null,"2013-10-26",null,null,"","","","","",null,null,null,null,null,null,null,null,null,null,null,null,null,null,null,"2012-12-24"]
[null,"2013-10-27",null,null,"","","","","",null,null,null,null,null,null,null,null,null,null,null,null,null,null,null,"2013-01-01"]
[null,"2013-10-28",null,null,"","","","","",null,null,null,null,null,null,null,null,null,null,null,null,null,null,null,"2013-01-14"]
[null,"2013-10-29",null,null,"","","","","",null,null,null,null,null,null,null,null,null,null,null,null,null,null,null,"2013-02-11"]
[null,"2013-10-30",null,null,"","","","","",null,null,null,null,null,null,null,null,null,null,null,null,null,null,null,"2013-03-20"]
[null,"2013-10-31",null,null,"","","","","",null,null,null,null,null,null,null,null,null,null,null,null,null,null,null,"2013-04-29"]
[null,{"$f":"B17","v":"2013-10-01"},{"$f":"SUM(C17:C47)","v":0},{"$f":"SUM(D17:D47)","v":0},{"$f":"SUM(E17:E47)","v":0},{"$f":"IF(D48=\"\",\"\",G48/$H$3)","v":{"$error":"#DIV/0!"}},{"$f":"IF(D48=0,0,H48/$I$7)","v":0},{"$f":"SUM(D17:D47)","v":0},{"$f":"IF(D48=\"\",\"\",IF($I$7-H48<0,\"0\",$I$7-H48))","v":0},null,null,null,null,null,null,null,null,null,null,null,null,null,null,null,"2013-05-03"]
[null,10,null,null,null,null,null,null,null,null,null,null,null,null,null,null,null,null,null,null,null,null,null,null,"2013-05-04"]
[null,"売上管理グラフ",null,null,null,null,null,null,null,null,null,null,null,null,null,null,null,null,null,null,null,null,null,null,"2013-05-06"]
[null,null,null,null,null,null,null,null,null,null,null,null,null,null,null,null,null,null,null,null,null,null,null,null,"2013-07-15"]
[null,null,null,null,null,null,null,null,null,null,null,null,null,null,null,null,null,null,null,null,null,null,null,null,"2013-09-16"]
[null,null,null,null,null,null,null,null,null,null,null,null,null,null,null,null,null,null,null,null,null,null,null,null,"2013-09-23"]
[null,null,null,null,null,null,null,null,null,null,null,null,null,null,null,null,null,null,null,null,null,null,null,null,"2013-10-14"]
[null,null,null,null,null,null,null,null,null,null,null,null,null,null,null,null,null,null,null,null,null,null,null,null,"2013-11-03"]
[null,null,null,null,null,null,null,null,null,null,null,null,null,null,null,null,null,null,null,null,null,null,null,null,"2013-11-04"]
[null,null,null,null,null,null,null,null,null,null,null,null,null,null,null,null,null,null,null,null,null,null,null,null,"2013-11-23"]
[null,null,null,null,null,null,null,null,null,null,null,null,null,null,null,null,null,null,null,null,null,null,null,null,"2013-12-23"]
[null,null,null,null,null,null,null,null,null,null,null,null,null,null,null,null,null,null,null,null,null,null,null,null,"2014-01-01"]
[null,null,null,null,null,null,null,null,null,null,null,null,null,null,null,null,null,null,null,null,null,null,null,null,"2014-01-13"]
[null,null,null,null,null,null,null,null,null,null,null,null,null,null,null,null,null,null,null,null,null,null,null,null,"2014-02-11"]
[null,null,null,null,null,null,null,null,null,null,null,null,null,null,null,null,null,null,null,null,null,null,null,null,"2014-03-21"]
[null,null,null,null,null,null,null,null,null,null,null,null,null,null,null,null,null,null,null,null,null,null,null,null,"2014-04-29"]
[null,null,null,null,null,null,null,null,null,null,null,null,null,null,null,null,null,null,null,null,null,null,null,null,"2014-05-03"]
[null,null,null,null,null,null,null,null,null,null,null,null,null,null,null,null,null,null,null,null,null,null,null,null,"2014-05-04"]
[null,null,null,null,null,null,null,null,null,null,null,null,null,null,null,null,null,null,null,null,null,null,null,null,"2014-05-05"]
[null,null,null,null,null,null,null,null,null,null,null,null,null,null,null,null,null,null,null,null,null,null,null,null,"2014-05-06"]
[null,null,null,null,null,null,null,null,null,null,null,null,null,null,null,null,null,null,null,null,null,null,null,null,"2014-07-21"]
[null,null,null,null,null,null,null,null,null,null,null,null,null,null,null,null,null,null,null,null,null,null,null,null,"2014-09-15"]
[null,null,null,null,null,null,null,null,null,null,null,null,null,null,null,null,null,null,null,null,null,null,null,null,"2014-09-23"]
[null,null,null,null,null,null,null,null,null,null,null,null,null,null,null,null,null,null,null,null,null,null,null,null,"2014-10-13"]
[null,null,null,null,null,null,null,null,null,null,null,null,null,null,null,null,null,null,null,null,null,null,null,null,"2014-11-03"]
[null,null,null,null,null,null,null,null,null,null,null,null,null,null,null,null,null,null,null,null,null,null,null,null,"2014-11-23"]
[null,null,null,null,null,null,null,null,null,null,null,null,null,null,null,null,null,null,null,null,null,null,null,null,"2014-11-24"]
[null,null,null,null,null,null,null,null,null,null,null,null,null,null,null,null,null,null,null,null,null,null,null,null,"2014-12-23"]
[null,null,null,null,null,null,null,null,null,null,null,null,null,null,null,null,null,null,null,null,null,null,null,null,"2015-01-01"]
[null,null,null,null,null,null,null,null,null,null,null,null,null,null,null,null,null,null,null,null,null,null,null,null,"2015-01-12"]
[null,null,null,null,null,null,null,null,null,null,null,null,null,null,null,null,null,null,null,null,null,null,null,null,"2015-02-11"]
[null,null,null,null,null,null,null,null,null,null,null,null,null,null,null,null,null,null,null,null,null,null,null,null,"2015-03-21"]
[null,null,null,null,null,null,null,null,null,null,null,null,null,null,null,null,null,null,null,null,null,null,null,null,"2015-04-29"]
[null,null,null,null,null,null,null,null,null,null,null,null,null,null,null,null,null,null,null,null,null,null,null,null,"2015-05-03"]
[null,null,null,null,null,null,null,null,null,null,null,null,null,null,null,null,null,null,null,null,null,null,null,null,"2015-05-04"]
[null,null,null,null,null,null,null,null,null,null,null,null,null,null,null,null,null,null,null,null,null,null,null,null,"2015-05-05"]
[null,null,null,null,null,null,null,null,null,null,null,null,null,null,null,null,null,null,null,null,null,null,null,null,"2015-05-06"]
[null,null,null,null,null,null,null,null,null,null,null,null,null,null,null,null,null,null,null,null,null,null,null,null,"2015-07-20"]
[null,null,null,null,null,null,null,null,null,null,null,null,null,null,null,null,null,null,null,null,null,null,null,null,"2015-09-21"]
[null,null,null,null,null,null,null,null,null,null,null,null,null,null,null,null,null,null,null,null,null,null,null,null,"2015-09-22"]
[null,null,null,null,null,null,null,null,null,null,null,null,null,null,null,null,null,null,null,null,null,null,null,null,"2015-09-23"]
[null,null,null,null,null,null,null,null,null,null,null,null,null,null,null,null,null,null,null,null,null,null,null,null,"2015-10-12"]
[null,null,null,null,null,null,null,null,null,null,null,null,null,null,null,null,null,null,null,null,null,null,null,null,"2015-11-03"]
[null,null,null,null,null,null,null,null,null,null,null,null,null,null,null,null,null,null,null,null,null,null,null,null,"2015-11-23"]
[null,null,null,null,null,null,null,null,null,null,null,null,null,null,null,null,null,null,null,null,null,null,null,null,"2015-12-23"]
[null,null,null,null,null,null,null,null,null,null,null,null,null,null,null,null,null,null,null,null,null,null,null,null,"2016-01-01"]
[null,null,null,null,null,null,null,null,null,null,null,null,null,null,null,null,null,null,null,null,null,null,null,null,"2016-01-11"]
[null,null,null,null,null,null,null,null,null,null,null,null,null,null,null,null,null,null,null,null,null,null,null,null,"2016-02-11"]
[null,null,null,null,null,null,null,null,null,null,null,null,null,null,null,null,null,null,null,null,null,null,null,null,"2016-03-20"]
[null,null,null,null,null,null,null,null,null,null,null,null,null,null,null,null,null,null,null,null,null,null,null,null,"2016-03-21"]
[null,null,null,null,null,null,null,null,null,null,null,null,null,null,null,null,null,null,null,null,null,null,null,null,"2016-04-29"]
[null,null,null,null,null,null,null,null,null,null,null,null,null,null,null,null,null,null,null,null,null,null,null,null,"2016-05-03"]
[null,null,null,null,null,null,null,null,null,null,null,null,null,null,null,null,null,null,null,null,null,null,null,null,"2016-05-04"]
[null,null,null,null,null,null,null,null,null,null,null,null,null,null,null,null,null,null,null,null,null,null,null,null,"2016-05-05"]
[null,null,null,null,null,null,null,null,null,null,null,null,null,null,null,null,null,null,null,null,null,null,null,null,"2016-07-18"]
[null,null,null,null,null,null,null,null,null,null,null,null,null,null,null,null,null,null,null,null,null,null,null,null,"2016-09-19"]
[null,null,null,null,null,null,null,null,null,null,null,null,null,null,null,null,null,null,null,null,null,null,null,null,"2016-09-22"]
[null,null,null,null,null,null,null,null,null,null,null,null,null,null,null,null,null,null,null,null,null,null,null,null,"2016-10-10"]
[null,null,null,null,null,null,null,null,null,null,null,null,null,null,null,null,null,null,null,null,null,null,null,null,"2016-11-03"]
[null,null,null,null,null,null,null,null,null,null,null,null,null,null,null,null,null,null,null,null,null,null,null,null,"2016-11-23"]
[null,null,null,null,null,null,null,null,null,null,null,null,null,null,null,null,null,null,null,null,null,null,null,null,"2016-12-23"]

{"sheet":"11月セールス活動表","index":3,"n_rows":108,"n_cols":25,"rows_kept":108,"cut":false,"hidden":false,"merged":[[47,4,47,5],[49,1,49,9],[41,4,41,5],[42,4,42,5],[43,4,43,5],[44,4,44,5],[45,4,45,5],[46,4,46,5],[40,4,40,5],[29,4,29,5],[30,4,30,5],[31,4,31,5],[32,4,32,5],[33,4,33,5],[34,4,34,5],[35,4,35,5],[36,4,36,5],[37,4,37,5],[38,4,38,5],[39,4,39,5],[28,4,28,5],[17,4,17,5],[18,4,18,5],[19,4,19,5],[20,4,20,5],[21,4,21,5],[22,4,22,5],[23,4,23,5],[24,4,24,5],[25,4,25,5],[26,4,26,5],[27,4,27,5],[16,4,16,5],[6,2,6,4],[6,6,6,7],[6,8,6,9],[8,1,8,9],[15,4,15,5]]}
[]
[null,"セールス活動表",null,null,null,null,null,"実施日："]
[]
[]
[]
[null,null,null,null,null,null,null,null,null,null,null,null,null,null,null,null,null,null,null,null,null,null,null,null,"祝日設定"]
[null,"会社名",null,null,null,null,{"$f":"B17","v":"2013-11-01"},null,null,null,null,null,null,null,null,null,null,null,null,null,null,null,null,null,"2011-01-01"]
[null,null,null,null,null,null,null,null,null,null,null,null,null,null,null,null,null,null,null,null,null,null,null,null,"2011-01-10"]
[null,"数値入力用キーパッド",null,null,null,null,null,null,null,null,null,null,null,null,null,null,null,null,null,null,null,null,null,null,"2011-02-11"]
[null,null,null,null,null,null,null,null,null,null,null,null,null,null,null,null,null,null,null,null,null,null,null,null,"2011-03-21"]
[null,null,null,null,null,null,null,null,null,null,null,null,null,null,null,null,null,null,null,null,null,null,null,null,"2011-04-29"]
[null,null,null,null,null,null,null,null,null,null,null,null,null,null,null,null,null,null,null,null,null,null,null,null,"2011-05-03"]
[null,null,null,null,null,null,null,null,null,null,null,null,null,null,null,null,null,null,null,null,null,null,null,null,"2011-05-04"]
[null,null,null,null,null,null,null,null,null,null,null,null,null,null,null,null,null,null,null,null,null,null,null,null,"2011-05-05"]
[null,null,null,null,null,null,null,null,null,null,null,null,null,null,null,null,null,null,null,null,null,null,null,null,"2011-07-18"]
[null,"日付","日割予算（千円）","実績（千円）","差（千円）",null,"月予算達成率","累計実績（千円）","残（千円）","備考"]
[null,{"$f":"DATE(YEAR(TODAY()),B49,1)","v":"2013-11-01"},null,null,{"$f":"IF(D17=\"\",\"\",D17-C17)","v":""},{"$f":"IF(E17=\"\",\"\",E17-D17)","v":""},{"$f":"IF(D17=\"\",\"\",H17/$I$7)","v":""},{"$f":"IF(D17=\"\",\"\",D17)","v":""},{"$f":"IF(D17=\"\",\"\",IF($I$7-H17<0,\"0\",$I$7-H17))","v":""},null,null,null,null,null,null,null,null,null,null,null,null,null,null,null,"2011-09-19"]
[null,{"$f":"IF(ISERROR(IF(MONTH(B17+1)=MONTH(B17), B17+1,\"\")),\"\",IF(MONTH(B17+1)=MONTH(B17), B17+1,\"\"))","v":"2013-11-02"},null,null,{"$f":"IF(D18=\"\",\"\",D18-C18)","v":""},"",{"$f":"IF(D18=\"\",\"\",H18/$I$7)","v":""},{"$f":"IF(D18=\"\",\"\",D18+H17)","v":""},{"$f":"IF(D18=\"\",\"\",IF($I$7-H18<0,\"0\",$I$7-H18))","v":""},null,null,null,null,null,null,null,null,null,null,null,null,null,null,null,"2011-09-23"]
[null,"2013-11-03",null,null,"","","",{"$f":"IF(D19=\"\",\"\",D19+H18)","v":""},"",null,null,null,null,null,null,null,null,null,null,null,null,null,null,null,"2011-10-10"]
[null,"2013-11-04",null,null,"","","","","",null,null,null,null,null,null,null,null,null,null,null,null,null,null,null,"2011-11-03"]
[null,"2013-11-05",null,null,"","","","","",null,null,null,null,null,null,null,null,null,null,null,null,null,null,null,"2011-11-23"]
[null,"2013-11-06",null,null,"","","","","",null,null,null,null,null,null,null,null,null,null,null,null,null,null,null,"2011-12-23"]
[null,"2013-11-07",null,null,"","","","","",null,null,null,null,null,null,null,null,null,null,null,null,null,null,null,"2011-12-30"]
[null,"2013-11-08",null,null,"","","","","",null,null,null,null,null,null,null,null,null,null,null,null,null,null,null,"2011-12-31"]
[null,"2013-11-09",null,null,"","","","","",null,null,null,null,null,null,null,null,null,null,null,null,null,null,null,"2012-01-01"]
[null,"2013-11-10",null,null,"","","","","",null,null,null,null,null,null,null,null,null,null,null,null,null,null,null,"2012-01-02"]
[null,"2013-11-11",null,null,"","","","","",null,null,null,null,null,null,null,null,null,null,null,null,null,null,null,"2012-01-09"]
[null,"2013-11-12",null,null,"","","","","",null,null,null,null,null,null,null,null,null,null,null,null,null,null,null,"2012-02-11"]
[null,"2013-11-13",null,null,"","","","","",null,null,null,null,null,null,null,null,null,null,null,null,null,null,null,"2012-03-20"]
[null,"2013-11-14",null,null,"","","","","",null,null,null,null,null,null,null,null,null,null,null,null,null,null,null,"2012-04-29"]
[null,"2013-11-15",null,null,"","","","","",null,null,null,null,null,null,null,null,null,null,null,null,null,null,null,"2012-04-30"]
[null,"2013-11-16",null,null,"","","","","",null,null,null,null,null,null,null,null,null,null,null,null,null,null,null,"2012-05-03"]
[null,"2013-11-17",null,null,"","","","","",null,null,null,null,null,null,null,null,null,null,null,null,null,null,null,"2012-05-04"]
[null,"2013-11-18",null,null,"","","","","",null,null,null,null,null,null,null,null,null,null,null,null,null,null,null,"2012-05-05"]
[null,"2013-11-19",null,null,"","","","","",null,null,null,null,null,null,null,null,null,null,null,null,null,null,null,"2012-07-16"]
[null,"2013-11-20",null,null,"","","","","",null,null,null,null,null,null,null,null,null,null,null,null,null,null,null,"2012-09-17"]
[null,"2013-11-21",null,null,"","","","","",null,null,null,null,null,null,null,null,null,null,null,null,null,null,null,"2012-09-22"]
[null,"2013-11-22",null,null,"","","","","",null,null,null,null,null,null,null,null,null,null,null,null,null,null,null,"2012-10-08"]
[null,"2013-11-23",null,null,"","","","","",null,null,null,null,null,null,null,null,null,null,null,null,null,null,null,"2012-11-03"]
[null,"2013-11-24",null,null,"","","","","",null,null,null,null,null,null,null,null,null,null,null,null,null,null,null,"2012-11-23"]
[null,"2013-11-25",null,null,"","","","","",null,null,null,null,null,null,null,null,null,null,null,null,null,null,null,"2012-12-23"]
[null,"2013-11-26",null,null,"","","","","",null,null,null,null,null,null,null,null,null,null,null,null,null,null,null,"2012-12-24"]
[null,"2013-11-27",null,null,"","","","","",null,null,null,null,null,null,null,null,null,null,null,null,null,null,null,"2013-01-01"]
[null,"2013-11-28",null,null,"","","","","",null,null,null,null,null,null,null,null,null,null,null,null,null,null,null,"2013-01-14"]
[null,"2013-11-29",null,null,"","","","","",null,null,null,null,null,null,null,null,null,null,null,null,null,null,null,"2013-02-11"]
[null,"2013-11-30",null,null,"","","","","",null,null,null,null,null,null,null,null,null,null,null,null,null,null,null,"2013-03-20"]
[null,"",null,null,"","","","","",null,null,null,null,null,null,null,null,null,null,null,null,null,null,null,"2013-04-29"]
[null,{"$f":"B17","v":"2013-11-01"},{"$f":"SUM(C17:C47)","v":0},{"$f":"SUM(D17:D47)","v":0},{"$f":"SUM(E17:E47)","v":0},{"$f":"IF(D48=\"\",\"\",G48/$H$3)","v":{"$error":"#DIV/0!"}},{"$f":"IF(D48=0,0,H48/$I$7)","v":0},{"$f":"SUM(D17:D47)","v":0},{"$f":"IF(D48=\"\",\"\",IF($I$7-H48<0,\"0\",$I$7-H48))","v":0},null,null,null,null,null,null,null,null,null,null,null,null,null,null,null,"2013-05-03"]
[null,11,null,null,null,null,null,null,null,null,null,null,null,null,null,null,null,null,null,null,null,null,null,null,"2013-05-04"]
[null,"売上管理グラフ",null,null,null,null,null,null,null,null,null,null,null,null,null,null,null,null,null,null,null,null,null,null,"2013-05-06"]
[null,null,null,null,null,null,null,null,null,null,null,null,null,null,null,null,null,null,null,null,null,null,null,null,"2013-07-15"]
[null,null,null,null,null,null,null,null,null,null,null,null,null,null,null,null,null,null,null,null,null,null,null,null,"2013-09-16"]
[null,null,null,null,null,null,null,null,null,null,null,null,null,null,null,null,null,null,null,null,null,null,null,null,"2013-09-23"]
[null,null,null,null,null,null,null,null,null,null,null,null,null,null,null,null,null,null,null,null,null,null,null,null,"2013-10-14"]
[null,null,null,null,null,null,null,null,null,null,null,null,null,null,null,null,null,null,null,null,null,null,null,null,"2013-11-03"]
[null,null,null,null,null,null,null,null,null,null,null,null,null,null,null,null,null,null,null,null,null,null,null,null,"2013-11-04"]
[null,null,null,null,null,null,null,null,null,null,null,null,null,null,null,null,null,null,null,null,null,null,null,null,"2013-11-23"]
[null,null,null,null,null,null,null,null,null,null,null,null,null,null,null,null,null,null,null,null,null,null,null,null,"2013-12-23"]
[null,null,null,null,null,null,null,null,null,null,null,null,null,null,null,null,null,null,null,null,null,null,null,null,"2014-01-01"]
[null,null,null,null,null,null,null,null,null,null,null,null,null,null,null,null,null,null,null,null,null,null,null,null,"2014-01-13"]
[null,null,null,null,null,null,null,null,null,null,null,null,null,null,null,null,null,null,null,null,null,null,null,null,"2014-02-11"]
[null,null,null,null,null,null,null,null,null,null,null,null,null,null,null,null,null,null,null,null,null,null,null,null,"2014-03-21"]
[null,null,null,null,null,null,null,null,null,null,null,null,null,null,null,null,null,null,null,null,null,null,null,null,"2014-04-29"]
[null,null,null,null,null,null,null,null,null,null,null,null,null,null,null,null,null,null,null,null,null,null,null,null,"2014-05-03"]
[null,null,null,null,null,null,null,null,null,null,null,null,null,null,null,null,null,null,null,null,null,null,null,null,"2014-05-04"]
[null,null,null,null,null,null,null,null,null,null,null,null,null,null,null,null,null,null,null,null,null,null,null,null,"2014-05-05"]
[null,null,null,null,null,null,null,null,null,null,null,null,null,null,null,null,null,null,null,null,null,null,null,null,"2014-05-06"]
[null,null,null,null,null,null,null,null,null,null,null,null,null,null,null,null,null,null,null,null,null,null,null,null,"2014-07-21"]
[null,null,null,null,null,null,null,null,null,null,null,null,null,null,null,null,null,null,null,null,null,null,null,null,"2014-09-15"]
[null,null,null,null,null,null,null,null,null,null,null,null,null,null,null,null,null,null,null,null,null,null,null,null,"2014-09-23"]
[null,null,null,null,null,null,null,null,null,null,null,null,null,null,null,null,null,null,null,null,null,null,null,null,"2014-10-13"]
[null,null,null,null,null,null,null,null,null,null,null,null,null,null,null,null,null,null,null,null,null,null,null,null,"2014-11-03"]
[null,null,null,null,null,null,null,null,null,null,null,null,null,null,null,null,null,null,null,null,null,null,null,null,"2014-11-23"]
[null,null,null,null,null,null,null,null,null,null,null,null,null,null,null,null,null,null,null,null,null,null,null,null,"2014-11-24"]
[null,null,null,null,null,null,null,null,null,null,null,null,null,null,null,null,null,null,null,null,null,null,null,null,"2014-12-23"]
[null,null,null,null,null,null,null,null,null,null,null,null,null,null,null,null,null,null,null,null,null,null,null,null,"2015-01-01"]
[null,null,null,null,null,null,null,null,null,null,null,null,null,null,null,null,null,null,null,null,null,null,null,null,"2015-01-12"]
[null,null,null,null,null,null,null,null,null,null,null,null,null,null,null,null,null,null,null,null,null,null,null,null,"2015-02-11"]
[null,null,null,null,null,null,null,null,null,null,null,null,null,null,null,null,null,null,null,null,null,null,null,null,"2015-03-21"]
[null,null,null,null,null,null,null,null,null,null,null,null,null,null,null,null,null,null,null,null,null,null,null,null,"2015-04-29"]
[null,null,null,null,null,null,null,null,null,null,null,null,null,null,null,null,null,null,null,null,null,null,null,null,"2015-05-03"]
[null,null,null,null,null,null,null,null,null,null,null,null,null,null,null,null,null,null,null,null,null,null,null,null,"2015-05-04"]
[null,null,null,null,null,null,null,null,null,null,null,null,null,null,null,null,null,null,null,null,null,null,null,null,"2015-05-05"]
[null,null,null,null,null,null,null,null,null,null,null,null,null,null,null,null,null,null,null,null,null,null,null,null,"2015-05-06"]
[null,null,null,null,null,null,null,null,null,null,null,null,null,null,null,null,null,null,null,null,null,null,null,null,"2015-07-20"]
[null,null,null,null,null,null,null,null,null,null,null,null,null,null,null,null,null,null,null,null,null,null,null,null,"2015-09-21"]
[null,null,null,null,null,null,null,null,null,null,null,null,null,null,null,null,null,null,null,null,null,null,null,null,"2015-09-22"]
[null,null,null,null,null,null,null,null,null,null,null,null,null,null,null,null,null,null,null,null,null,null,null,null,"2015-09-23"]
[null,null,null,null,null,null,null,null,null,null,null,null,null,null,null,null,null,null,null,null,null,null,null,null,"2015-10-12"]
[null,null,null,null,null,null,null,null,null,null,null,null,null,null,null,null,null,null,null,null,null,null,null,null,"2015-11-03"]
[null,null,null,null,null,null,null,null,null,null,null,null,null,null,null,null,null,null,null,null,null,null,null,null,"2015-11-23"]
[null,null,null,null,null,null,null,null,null,null,null,null,null,null,null,null,null,null,null,null,null,null,null,null,"2015-12-23"]
[null,null,null,null,null,null,null,null,null,null,null,null,null,null,null,null,null,null,null,null,null,null,null,null,"2016-01-01"]
[null,null,null,null,null,null,null,null,null,null,null,null,null,null,null,null,null,null,null,null,null,null,null,null,"2016-01-11"]
[null,null,null,null,null,null,null,null,null,null,null,null,null,null,null,null,null,null,null,null,null,null,null,null,"2016-02-11"]
[null,null,null,null,null,null,null,null,null,null,null,null,null,null,null,null,null,null,null,null,null,null,null,null,"2016-03-20"]
[null,null,null,null,null,null,null,null,null,null,null,null,null,null,null,null,null,null,null,null,null,null,null,null,"2016-03-21"]
[null,null,null,null,null,null,null,null,null,null,null,null,null,null,null,null,null,null,null,null,null,null,null,null,"2016-04-29"]
[null,null,null,null,null,null,null,null,null,null,null,null,null,null,null,null,null,null,null,null,null,null,null,null,"2016-05-03"]
[null,null,null,null,null,null,null,null,null,null,null,null,null,null,null,null,null,null,null,null,null,null,null,null,"2016-05-04"]
[null,null,null,null,null,null,null,null,null,null,null,null,null,null,null,null,null,null,null,null,null,null,null,null,"2016-05-05"]
[null,null,null,null,null,null,null,null,null,null,null,null,null,null,null,null,null,null,null,null,null,null,null,null,"2016-07-18"]
[null,null,null,null,null,null,null,null,null,null,null,null,null,null,null,null,null,null,null,null,null,null,null,null,"2016-09-19"]
[null,null,null,null,null,null,null,null,null,null,null,null,null,null,null,null,null,null,null,null,null,null,null,null,"2016-09-22"]
[null,null,null,null,null,null,null,null,null,null,null,null,null,null,null,null,null,null,null,null,null,null,null,null,"2016-10-10"]
[null,null,null,null,null,null,null,null,null,null,null,null,null,null,null,null,null,null,null,null,null,null,null,null,"2016-11-03"]
[null,null,null,null,null,null,null,null,null,null,null,null,null,null,null,null,null,null,null,null,null,null,null,null,"2016-11-23"]
[null,null,null,null,null,null,null,null,null,null,null,null,null,null,null,null,null,null,null,null,null,null,null,null,"2016-12-23"]

{"sheet":"12月セールス活動表","index":4,"n_rows":108,"n_cols":25,"rows_kept":108,"cut":false,"hidden":false,"merged":[[47,4,47,5],[49,1,49,9],[41,4,41,5],[42,4,42,5],[43,4,43,5],[44,4,44,5],[45,4,45,5],[46,4,46,5],[40,4,40,5],[29,4,29,5],[30,4,30,5],[31,4,31,5],[32,4,32,5],[33,4,33,5],[34,4,34,5],[35,4,35,5],[36,4,36,5],[37,4,37,5],[38,4,38,5],[39,4,39,5],[28,4,28,5],[17,4,17,5],[18,4,18,5],[19,4,19,5],[20,4,20,5],[21,4,21,5],[22,4,22,5],[23,4,23,5],[24,4,24,5],[25,4,25,5],[26,4,26,5],[27,4,27,5],[16,4,16,5],[6,2,6,4],[6,6,6,7],[6,8,6,9],[8,1,8,9],[15,4,15,5]]}
[]
[null,"セールス活動表",null,null,null,null,null,"実施日："]
[]
[]
[]
[null,null,null,null,null,null,null,null,null,null,null,null,null,null,null,null,null,null,null,null,null,null,null,null,"祝日設定"]
[null,"会社名",null,null,null,null,{"$f":"B17","v":"2013-12-01"},null,null,null,null,null,null,null,null,null,null,null,null,null,null,null,null,null,"2011-01-01"]
[null,null,null,null,null,null,null,null,null,null,null,null,null,null,null,null,null,null,null,null,null,null,null,null,"2011-01-10"]
[null,"数値入力用キーパッド",null,null,null,null,null,null,null,null,null,null,null,null,null,null,null,null,null,null,null,null,null,null,"2011-02-11"]
[null,null,null,null,null,null,null,null,null,null,null,null,null,null,null,null,null,null,null,null,null,null,null,null,"2011-03-21"]
[null,null,null,null,null,null,null,null,null,null,null,null,null,null,null,null,null,null,null,null,null,null,null,null,"2011-04-29"]
[null,null,null,null,null,null,null,null,null,null,null,null,null,null,null,null,null,null,null,null,null,null,null,null,"2011-05-03"]
[null,null,null,null,null,null,null,null,null,null,null,null,null,null,null,null,null,null,null,null,null,null,null,null,"2011-05-04"]
[null,null,null,null,null,null,null,null,null,null,null,null,null,null,null,null,null,null,null,null,null,null,null,null,"2011-05-05"]
[null,null,null,null,null,null,null,null,null,null,null,null,null,null,null,null,null,null,null,null,null,null,null,null,"2011-07-18"]
[null,"日付","日割予算（千円）","実績（千円）","差（千円）",null,"月予算達成率","累計実績（千円）","残（千円）","備考"]
[null,{"$f":"DATE(YEAR(TODAY()),B49,1)","v":"2013-12-01"},null,null,{"$f":"IF(D17=\"\",\"\",D17-C17)","v":""},{"$f":"IF(E17=\"\",\"\",E17-D17)","v":""},{"$f":"IF(D17=\"\",\"\",H17/$I$7)","v":""},{"$f":"IF(D17=\"\",\"\",D17)","v":""},{"$f":"IF(D17=\"\",\"\",IF($I$7-H17<0,\"0\",$I$7-H17))","v":""},null,null,null,null,null,null,null,null,null,null,null,null,null,null,null,"2011-09-19"]
[null,{"$f":"IF(ISERROR(IF(MONTH(B17+1)=MONTH(B17), B17+1,\"\")),\"\",IF(MONTH(B17+1)=MONTH(B17), B17+1,\"\"))","v":"2013-12-02"},null,null,{"$f":"IF(D18=\"\",\"\",D18-C18)","v":""},"",{"$f":"IF(D18=\"\",\"\",H18/$I$7)","v":""},{"$f":"IF(D18=\"\",\"\",D18+H17)","v":""},{"$f":"IF(D18=\"\",\"\",IF($I$7-H18<0,\"0\",$I$7-H18))","v":""},null,null,null,null,null,null,null,null,null,null,null,null,null,null,null,"2011-09-23"]
[null,"2013-12-03",null,null,"","","",{"$f":"IF(D19=\"\",\"\",D19+H18)","v":""},"",null,null,null,null,null,null,null,null,null,null,null,null,null,null,null,"2011-10-10"]
[null,"2013-12-04",null,null,"","","","","",null,null,null,null,null,null,null,null,null,null,null,null,null,null,null,"2011-11-03"]
[null,"2013-12-05",null,null,"","","","","",null,null,null,null,null,null,null,null,null,null,null,null,null,null,null,"2011-11-23"]
[null,"2013-12-06",null,null,"","","","","",null,null,null,null,null,null,null,null,null,null,null,null,null,null,null,"2011-12-23"]
[null,"2013-12-07",null,null,"","","","","",null,null,null,null,null,null,null,null,null,null,null,null,null,null,null,"2011-12-30"]
[null,"2013-12-08",null,null,"","","","","",null,null,null,null,null,null,null,null,null,null,null,null,null,null,null,"2011-12-31"]
[null,"2013-12-09",null,null,"","","","","",null,null,null,null,null,null,null,null,null,null,null,null,null,null,null,"2012-01-01"]
[null,"2013-12-10",null,null,"","","","","",null,null,null,null,null,null,null,null,null,null,null,null,null,null,null,"2012-01-02"]
[null,"2013-12-11",null,null,"","","","","",null,null,null,null,null,null,null,null,null,null,null,null,null,null,null,"2012-01-09"]
[null,"2013-12-12",null,null,"","","","","",null,null,null,null,null,null,null,null,null,null,null,null,null,null,null,"2012-02-11"]
[null,"2013-12-13",null,null,"","","","","",null,null,null,null,null,null,null,null,null,null,null,null,null,null,null,"2012-03-20"]
[null,"2013-12-14",null,null,"","","","","",null,null,null,null,null,null,null,null,null,null,null,null,null,null,null,"2012-04-29"]
[null,"2013-12-15",null,null,"","","","","",null,null,null,null,null,null,null,null,null,null,null,null,null,null,null,"2012-04-30"]
[null,"2013-12-16",null,null,"","","","","",null,null,null,null,null,null,null,null,null,null,null,null,null,null,null,"2012-05-03"]
[null,"2013-12-17",null,null,"","","","","",null,null,null,null,null,null,null,null,null,null,null,null,null,null,null,"2012-05-04"]
[null,"2013-12-18",null,null,"","","","","",null,null,null,null,null,null,null,null,null,null,null,null,null,null,null,"2012-05-05"]
[null,"2013-12-19",null,null,"","","","","",null,null,null,null,null,null,null,null,null,null,null,null,null,null,null,"2012-07-16"]
[null,"2013-12-20",null,null,"","","","","",null,null,null,null,null,null,null,null,null,null,null,null,null,null,null,"2012-09-17"]
[null,"2013-12-21",null,null,"","","","","",null,null,null,null,null,null,null,null,null,null,null,null,null,null,null,"2012-09-22"]
[null,"2013-12-22",null,null,"","","","","",null,null,null,null,null,null,null,null,null,null,null,null,null,null,null,"2012-10-08"]
[null,"2013-12-23",null,null,"","","","","",null,null,null,null,null,null,null,null,null,null,null,null,null,null,null,"2012-11-03"]
[null,"2013-12-24",null,null,"","","","","",null,null,null,null,null,null,null,null,null,null,null,null,null,null,null,"2012-11-23"]
[null,"2013-12-25",null,null,"","","","","",null,null,null,null,null,null,null,null,null,null,null,null,null,null,null,"2012-12-23"]
[null,"2013-12-26",null,null,"","","","","",null,null,null,null,null,null,null,null,null,null,null,null,null,null,null,"2012-12-24"]
[null,"2013-12-27",null,null,"","","","","",null,null,null,null,null,null,null,null,null,null,null,null,null,null,null,"2013-01-01"]
[null,"2013-12-28",null,null,"","","","","",null,null,null,null,null,null,null,null,null,null,null,null,null,null,null,"2013-01-14"]
[null,"2013-12-29",null,null,"","","","","",null,null,null,null,null,null,null,null,null,null,null,null,null,null,null,"2013-02-11"]
[null,"2013-12-30",null,null,"","","","","",null,null,null,null,null,null,null,null,null,null,null,null,null,null,null,"2013-03-20"]
[null,"2013-12-31",null,null,"","","","","",null,null,null,null,null,null,null,null,null,null,null,null,null,null,null,"2013-04-29"]
[null,{"$f":"B17","v":"2013-12-01"},{"$f":"SUM(C17:C47)","v":0},{"$f":"SUM(D17:D47)","v":0},{"$f":"SUM(E17:E47)","v":0},{"$f":"IF(D48=\"\",\"\",G48/$H$3)","v":{"$error":"#DIV/0!"}},{"$f":"IF(D48=0,0,H48/$I$7)","v":0},{"$f":"SUM(D17:D47)","v":0},{"$f":"IF(D48=\"\",\"\",IF($I$7-H48<0,\"0\",$I$7-H48))","v":0},null,null,null,null,null,null,null,null,null,null,null,null,null,null,null,"2013-05-03"]
[null,12,null,null,null,null,null,null,null,null,null,null,null,null,null,null,null,null,null,null,null,null,null,null,"2013-05-04"]
[null,"売上管理グラフ",null,null,null,null,null,null,null,null,null,null,null,null,null,null,null,null,null,null,null,null,null,null,"2013-05-06"]
[null,null,null,null,null,null,null,null,null,null,null,null,null,null,null,null,null,null,null,null,null,null,null,null,"2013-07-15"]
[null,null,null,null,null,null,null,null,null,null,null,null,null,null,null,null,null,null,null,null,null,null,null,null,"2013-09-16"]
[null,null,null,null,null,null,null,null,null,null,null,null,null,null,null,null,null,null,null,null,null,null,null,null,"2013-09-23"]
[null,null,null,null,null,null,null,null,null,null,null,null,null,null,null,null,null,null,null,null,null,null,null,null,"2013-10-14"]
[null,null,null,null,null,null,null,null,null,null,null,null,null,null,null,null,null,null,null,null,null,null,null,null,"2013-11-03"]
[null,null,null,null,null,null,null,null,null,null,null,null,null,null,null,null,null,null,null,null,null,null,null,null,"2013-11-04"]
[null,null,null,null,null,null,null,null,null,null,null,null,null,null,null,null,null,null,null,null,null,null,null,null,"2013-11-23"]
[null,null,null,null,null,null,null,null,null,null,null,null,null,null,null,null,null,null,null,null,null,null,null,null,"2013-12-23"]
[null,null,null,null,null,null,null,null,null,null,null,null,null,null,null,null,null,null,null,null,null,null,null,null,"2014-01-01"]
[null,null,null,null,null,null,null,null,null,null,null,null,null,null,null,null,null,null,null,null,null,null,null,null,"2014-01-13"]
[null,null,null,null,null,null,null,null,null,null,null,null,null,null,null,null,null,null,null,null,null,null,null,null,"2014-02-11"]
[null,null,null,null,null,null,null,null,null,null,null,null,null,null,null,null,null,null,null,null,null,null,null,null,"2014-03-21"]
[null,null,null,null,null,null,null,null,null,null,null,null,null,null,null,null,null,null,null,null,null,null,null,null,"2014-04-29"]
[null,null,null,null,null,null,null,null,null,null,null,null,null,null,null,null,null,null,null,null,null,null,null,null,"2014-05-03"]
[null,null,null,null,null,null,null,null,null,null,null,null,null,null,null,null,null,null,null,null,null,null,null,null,"2014-05-04"]
[null,null,null,null,null,null,null,null,null,null,null,null,null,null,null,null,null,null,null,null,null,null,null,null,"2014-05-05"]
[null,null,null,null,null,null,null,null,null,null,null,null,null,null,null,null,null,null,null,null,null,null,null,null,"2014-05-06"]
[null,null,null,null,null,null,null,null,null,null,null,null,null,null,null,null,null,null,null,null,null,null,null,null,"2014-07-21"]
[null,null,null,null,null,null,null,null,null,null,null,null,null,null,null,null,null,null,null,null,null,null,null,null,"2014-09-15"]
[null,null,null,null,null,null,null,null,null,null,null,null,null,null,null,null,null,null,null,null,null,null,null,null,"2014-09-23"]
[null,null,null,null,null,null,null,null,null,null,null,null,null,null,null,null,null,null,null,null,null,null,null,null,"2014-10-13"]
[null,null,null,null,null,null,null,null,null,null,null,null,null,null,null,null,null,null,null,null,null,null,null,null,"2014-11-03"]
[null,null,null,null,null,null,null,null,null,null,null,null,null,null,null,null,null,null,null,null,null,null,null,null,"2014-11-23"]
[null,null,null,null,null,null,null,null,null,null,null,null,null,null,null,null,null,null,null,null,null,null,null,null,"2014-11-24"]
[null,null,null,null,null,null,null,null,null,null,null,null,null,null,null,null,null,null,null,null,null,null,null,null,"2014-12-23"]
[null,null,null,null,null,null,null,null,null,null,null,null,null,null,null,null,null,null,null,null,null,null,null,null,"2015-01-01"]
[null,null,null,null,null,null,null,null,null,null,null,null,null,null,null,null,null,null,null,null,null,null,null,null,"2015-01-12"]
[null,null,null,null,null,null,null,null,null,null,null,null,null,null,null,null,null,null,null,null,null,null,null,null,"2015-02-11"]
[null,null,null,null,null,null,null,null,null,null,null,null,null,null,null,null,null,null,null,null,null,null,null,null,"2015-03-21"]
[null,null,null,null,null,null,null,null,null,null,null,null,null,null,null,null,null,null,null,null,null,null,null,null,"2015-04-29"]
[null,null,null,null,null,null,null,null,null,null,null,null,null,null,null,null,null,null,null,null,null,null,null,null,"2015-05-03"]
[null,null,null,null,null,null,null,null,null,null,null,null,null,null,null,null,null,null,null,null,null,null,null,null,"2015-05-04"]
[null,null,null,null,null,null,null,null,null,null,null,null,null,null,null,null,null,null,null,null,null,null,null,null,"2015-05-05"]
[null,null,null,null,null,null,null,null,null,null,null,null,null,null,null,null,null,null,null,null,null,null,null,null,"2015-05-06"]
[null,null,null,null,null,null,null,null,null,null,null,null,null,null,null,null,null,null,null,null,null,null,null,null,"2015-07-20"]
[null,null,null,null,null,null,null,null,null,null,null,null,null,null,null,null,null,null,null,null,null,null,null,null,"2015-09-21"]
[null,null,null,null,null,null,null,null,null,null,null,null,null,null,null,null,null,null,null,null,null,null,null,null,"2015-09-22"]
[null,null,null,null,null,null,null,null,null,null,null,null,null,null,null,null,null,null,null,null,null,null,null,null,"2015-09-23"]
[null,null,null,null,null,null,null,null,null,null,null,null,null,null,null,null,null,null,null,null,null,null,null,null,"2015-10-12"]
[null,null,null,null,null,null,null,null,null,null,null,null,null,null,null,null,null,null,null,null,null,null,null,null,"2015-11-03"]
[null,null,null,null,null,null,null,null,null,null,null,null,null,null,null,null,null,null,null,null,null,null,null,null,"2015-11-23"]
[null,null,null,null,null,null,null,null,null,null,null,null,null,null,null,null,null,null,null,null,null,null,null,null,"2015-12-23"]
[null,null,null,null,null,null,null,null,null,null,null,null,null,null,null,null,null,null,null,null,null,null,null,null,"2016-01-01"]
[null,null,null,null,null,null,null,null,null,null,null,null,null,null,null,null,null,null,null,null,null,null,null,null,"2016-01-11"]
[null,null,null,null,null,null,null,null,null,null,null,null,null,null,null,null,null,null,null,null,null,null,null,null,"2016-02-11"]
[null,null,null,null,null,null,null,null,null,null,null,null,null,null,null,null,null,null,null,null,null,null,null,null,"2016-03-20"]
[null,null,null,null,null,null,null,null,null,null,null,null,null,null,null,null,null,null,null,null,null,null,null,null,"2016-03-21"]
[null,null,null,null,null,null,null,null,null,null,null,null,null,null,null,null,null,null,null,null,null,null,null,null,"2016-04-29"]
[null,null,null,null,null,null,null,null,null,null,null,null,null,null,null,null,null,null,null,null,null,null,null,null,"2016-05-03"]
[null,null,null,null,null,null,null,null,null,null,null,null,null,null,null,null,null,null,null,null,null,null,null,null,"2016-05-04"]
[null,null,null,null,null,null,null,null,null,null,null,null,null,null,null,null,null,null,null,null,null,null,null,null,"2016-05-05"]
[null,null,null,null,null,null,null,null,null,null,null,null,null,null,null,null,null,null,null,null,null,null,null,null,"2016-07-18"]
[null,null,null,null,null,null,null,null,null,null,null,null,null,null,null,null,null,null,null,null,null,null,null,null,"2016-09-19"]
[null,null,null,null,null,null,null,null,null,null,null,null,null,null,null,null,null,null,null,null,null,null,null,null,"2016-09-22"]
[null,null,null,null,null,null,null,null,null,null,null,null,null,null,null,null,null,null,null,null,null,null,null,null,"2016-10-10"]
[null,null,null,null,null,null,null,null,null,null,null,null,null,null,null,null,null,null,null,null,null,null,null,null,"2016-11-03"]
[null,null,null,null,null,null,null,null,null,null,null,null,null,null,null,null,null,null,null,null,null,null,null,null,"2016-11-23"]
[null,null,null,null,null,null,null,null,null,null,null,null,null,null,null,null,null,null,null,null,null,null,null,null,"2016-12-23"]

{"sheet":"Sheet2","index":5,"n_rows":16,"n_cols":2,"rows_kept":16,"cut":false,"hidden":true,"merged":[]}
[]
[1,"1月"]
[2,"2月"]
[3,"3月"]
[4,"4月"]
[5,"5月"]
[6,"6月"]
[7,"7月"]
[8,"8月"]
[9,"9月"]
[10,"10月"]
[11,"11月"]
[12,"12月"]
[]
[null,11]
[null,{"$f":"B15","v":11}]